bitfinex-derivatives/quotes_SOLF0:USTF0_20250706
["timestamp","ask_amount","ask_price","bid_price","bid_amount"]
[1751827709796,17.85688798,151.15,151.1,8.29236926]
[1751827709992,4.32083593,151.14,151.1,8.29236926]
[1751827710191,4.89920128,151.15,151.1,8.29236926]
[1751827710391,4.32059212,151.14,151.1,8.29236926]
[1751827710593,4.89920128,151.15,151.1,8.29236926]
[1751827711090,46.22,151.16,151.11,6.6164]
[1751827711290,12.95821707,151.15,151.12,4.89920128]
[1751827711491,11.40231996,151.19,151.14,4.89920128]
[1751827711692,4.89920128,151.17,151.1,6.57477054]
[1751827711895,8.62066578,151.16,151.1,1.67556926]
[1751827712192,17.81930814,151.15,151.1,1.67556926]
[1751827712395,4.89920128,151.13,151.1,1.67556926]
[1751827712583,6.6167,151.11,151.1,1.67556926]
[1751827715188,6.6167,151.11,151.03,46.22]
[1751827715189,6.6179,151.09,151.03,46.22]
[1751827715388,4.89920128,151.11,151.04,6.6194]
[1751827715686,51.11920128,151.11,151.04,6.6194]
[1751827716487,6.6187,151.07,151.03,11.51930128]
[1751827716897,51.11920128,151.11,151.03,4.89920128]
[1751827717193,4.89920128,151.1,151.03,4.89920128]
[1751827717398,46.22,151.11,151.05,4.89920128]
[1751827717599,6.6176,151.09,151.02,1.67556926]
[1751827717899,6.6176,151.09,151.04,4.89920128]
[1751827718197,6.6176,151.09,151.05,6.6189]
[1751827718594,6.6176,151.09,151.02,1.67556926]
[1751827718793,6.6176,151.09,151.04,4.89920128]
[1751827719302,46.22,151.11,151.06,4.89920128]
[1751827719799,46.22,151.11,151.07,6.6181]
[1751827720197,6.6172,151.1,151.07,6.6181]
[1751827720398,46.22,151.11,151.07,6.6181]
[1751827721295,46.22,151.11,151.02,1.67556926]
[1751827721497,46.22,151.11,151.02,6.57477054]
[1751827721700,46.22,151.11,151.07,6.6182]
[1751827721897,46.22,151.11,151.04,4.89920128]
[1751827721898,6.6176,151.09,151.04,4.89920128]
[1751827722099,51.11920128,151.11,151.02,1.67556926]
[1751827722298,51.11920128,151.11,151.05,6.619]
[1751827722494,6.6179,151.09,151.05,6.619]
[1751827723591,46.22,151.11,151.02,1.67556926]
[1751827723796,46.22,151.11,151.02,6.57477054]
[1751827724002,4.89920128,151.1,151.02,6.57477054]
[1751827724298,46.22,151.11,151.02,1.67556926]
[1751827724505,4.89920128,151.1,151.02,1.67556926]
[1751827724802,4.89920128,151.08,151.02,1.67556926]
[1751827725199,2.3332,151.1,151.02,1.67556926]
[1751827725502,4.89920128,151.08,151.02,1.67556926]
[1751827725901,6.6191,151.06,151.02,8.29616926]
[1751827726101,4.89920128,151.08,151.02,1.67556926]
[1751827726705,4.89920128,151.09,151.02,6.57477054]
[1751827726901,6.6185,151.07,151.02,13.19507054]
[1751827727097,4.89920128,151.09,151.02,8.29586926]
[1751827727298,4.89920128,151.08,151.02,8.29586926]
[1751827727496,4.89920128,151.06,151.02,1.67556926]
[1751827728603,6.6194,151.05,151.02,1.67556926]
[1751827731811,6.6198,151.04,151.02,1.67556926]
[1751827733112,6.6193,151.05,151.02,8.29606926]
[1751827734213,6.6197,151.04,151.02,1.67556926]
[1751827734512,46.24,151.06,151.02,1.67556926]
[1751827735709,6.6198,151.04,151.02,1.67556926]
[1751827738519,6.6202,151.03,151.02,1.67556926]
[1751827739909,6.6194,151.05,151.02,8.29616926]
[1751827740115,46.24,151.06,151.02,1.67556926]
[1751827740917,46.24,151.06,151.02,8.29576926]
[1751827741118,46.24,151.06,151.02,6.57477054]
[1751827741520,52.859,151.06,151.03,6.6199]
[1751827744113,46.24,151.06,151.04,6.6196]
[1751827744527,6.6184,151.08,151.02,6.57477054]
[1751827744818,53.47240128,151.1,151.04,6.6195]
[1751827745019,6.6189,151.06,151.02,1.67556926]
[1751827745216,6.6189,151.06,151.02,6.57477054]
[1751827746121,6.6189,151.06,151.03,6.6199]
[1751827747020,6.6185,151.07,151.04,6.6197]
[1751827748726,6.6189,151.06,151.03,6.62]
[1751827749622,4.89920128,151.06,151.02,1.67556926]
[1751827751728,6.6198,151.04,151.02,1.67556926]
[1751827751924,4.89920128,151.06,151.02,1.67556926]
[1751827752124,6.6202,151.03,151.02,1.67556926]
[1751827764430,51.79920128,151.06,151.02,1.67556926]
[1751827764630,8.44897862,151.05,151.02,1.67556926]
[1751827764831,51.79920128,151.06,151.02,1.67556926]
[1751827765129,6.6196,151.05,151.02,1.67556926]
[1751827766124,46.9,151.06,151.02,1.67556926]
[1751827767225,6.6196,151.05,151.02,8.29616926]
[1751827768429,6.6197,151.04,151.02,1.67556926]
[1751827770026,46.9,151.06,151.02,1.67556926]
[1751827770528,4.89920128,151.03,151.02,1.67556926]
[1751827770732,20.28324165,151.03,151.02,1.67556926]
[1751827771534,13.66216568,151.03,150.96,48.5713]
[1751827771737,4.89920128,151.03,150.96,55.1942]
[1751827771931,6.6218,151.0,150.96,55.1942]
[1751827772238,4.89920128,151.03,150.96,55.1942]
[1751827772433,6.6217,151.0,150.96,55.1942]
[1751827772934,6.6217,151.0,150.97,6.6228]
[1751827773126,4.3289,151.05,150.91,27.47054101]
[1751827773333,4.3289,151.05,150.94,4.89920128]
[1751827773334,4.89920128,151.01,150.94,4.89920128]
[1751827773833,6.6224,150.98,150.91,1.67556926]
[1751827774037,2.2691,151.04,150.91,1.67556926]
[1751827774337,13.42090095,151.03,150.95,4.89920128]
[1751827774634,4.17730579,151.02,150.95,11.52270128]
[1751827774828,4.89920128,150.99,150.91,1.67556926]
[1751827775024,4.89920128,150.99,150.92,6.6246]
[1751827775234,4.89920128,150.99,150.91,6.57477054]
[1751827775536,4.89920128,150.99,150.93,4.89920128]
[1751827775729,6.6236,150.96,150.91,6.57477054]
[1751827775928,4.89920128,150.99,150.91,6.57477054]
[1751827776530,6.6239,150.95,150.91,6.57477054]
[1751827777336,6.6239,150.95,150.91,13.20017054]
[1751827777532,6.6232,150.97,150.91,6.57477054]
[1751827777741,7.20750128,151.0,150.92,4.89920128]
[1751827777930,7.20750128,151.0,150.93,6.6242]
[1751827778424,46.84,151.06,150.98,4.89920128]
[1751827778627,46.84,151.06,151.0,4.89920128]
[1751827778829,6.6193,151.05,151.0,4.89920128]
[1751827779032,46.84,151.06,151.02,4.89920128]
[1751827779630,6.6181,151.08,151.04,4.89920128]
[1751827780230,4.89920128,151.07,150.98,46.84]
[1751827780427,4.89920128,151.05,150.97,11.43870128]
[1751827780727,6.6215,151.0,150.96,6.6229]
[1751827782731,6.6215,151.0,150.96,11.52210128]
[1751827783035,46.84,151.03,150.96,4.89920128]
[1751827783333,4.3298,151.06,150.98,4.89920128]
[1751827783334,9.22900128,151.06,150.98,4.89920128]
[1751827783542,6.6197,151.05,151.01,6.6209]
[1751827783735,6.6197,151.05,151.02,4.89920128]
[1751827784137,46.84,151.06,151.02,11.51960128]
[1751827784636,46.84,151.06,151.03,6.6199]
[1751827784841,46.84,151.06,151.02,4.89920128]
[1751827785237,46.84,151.06,151.03,6.6201]
[1751827786238,53.4589,151.06,151.02,11.51970128]
[1751827787251,53.4589,151.06,151.02,6.6205]
[1751827787442,46.84,151.06,151.03,6.6201]
[1751827787844,46.84,151.06,151.02,4.89920128]
[1751827789343,6.619,151.06,150.92,596.6635951]
[1751827789547,2.2006,151.09,150.92,596.6635951]
[1751827789548,4.89920128,151.08,151.01,4.89920128]
[1751827790549,6.6197,151.05,151.01,4.89920128]
[1751827791344,6.6198,151.04,151.01,4.89920128]
[1751827791750,4.89920128,151.08,151.01,11.52020128]
[1751827791946,6.6196,151.05,151.01,11.52020128]
[1751827793260,6.619,151.06,151.02,6.6206]
[1751827793560,4.89920128,151.08,151.02,6.6206]
[1751827793750,6.6194,151.05,151.02,6.6206]
[1751827794160,4.89920128,151.08,151.02,6.6206]
[1751827794356,6.6191,151.06,151.02,6.6206]
[1751827794656,6.6191,151.06,151.03,11.51910128]
[1751827795450,6.6191,151.06,151.03,4.89920128]
[1751827796547,6.6191,151.06,151.03,11.51930128]
[1751827798556,6.6186,151.07,151.04,6.6197]
[1751827800155,6.6181,151.08,151.04,6.6197]
[1751827800352,6.6181,151.08,151.05,6.6192]
[1751827801058,6.6177,151.09,151.05,11.51840128]
[1751827801250,46.82,151.1,151.05,11.51840128]
[1751827802658,6.6182,151.08,151.05,11.51840128]
[1751827803159,6.6182,151.08,151.05,6.6192]
[1751827803349,6.6185,151.07,151.04,6.6196]
[1751827803552,46.82,151.1,151.02,4.89920128]
[1751827803748,18.52743537,151.14,151.06,4.89920128]
[1751827803955,6.6178,151.09,151.06,11.51790128]
[1751827804153,4.89920128,151.12,151.06,4.89920128]
[1751827805161,56.24520128,151.14,151.08,4.89920128]
[1751827805361,12.73599741,151.13,151.08,4.89920128]
[1751827805564,56.24520128,151.14,151.08,4.89920128]
[1751827805565,6.6165,151.12,151.09,6.6173]
[1751827809060,6.6157,151.14,151.1,11.51590128]
[1751827809359,8.92239825,151.17,151.12,4.89920128]
[1751827809565,8.46424964,151.16,151.12,4.89920128]
[1751827809763,46.58,151.19,151.14,4.89920128]
[1751827809958,571.68,151.22,151.16,4.89920128]
[1751827810158,8.46708842,151.21,151.16,4.89920128]
[1751827810352,51.47920128,151.23,151.16,4.89920128]
[1751827810757,6.6135,151.19,151.16,4.89920128]
[1751827810957,51.47920128,151.23,151.16,4.89920128]
[1751827811556,6.6128,151.2,151.16,11.51350128]
[1751827811954,46.58,151.23,151.16,4.89920128]
[1751827812567,46.58,151.23,151.18,6.6135]
[1751827812568,6.6122,151.22,151.18,6.6135]
[1751827813159,6.6124,151.21,151.17,11.51290128]
[1751827813964,46.58,151.23,151.16,11.51350128]
[1751827814464,4.89920128,151.22,151.16,4.89920128]
[1751827814861,46.58,151.23,151.16,4.89920128]
[1751827815372,6.6124,151.21,151.17,6.6137]
[1751827815663,46.58,151.23,151.16,4.89920128]
[1751827816564,6.6124,151.21,151.17,6.6137]
[1751827818362,46.58,151.23,151.18,4.89920128]
[1751827818561,2.201,151.26,151.13,6.6893]
[1751827818759,7.10020128,151.26,151.19,4.89920128]
[1751827819167,2.201,151.26,151.19,4.89920128]
[1751827819357,7.10020128,151.26,151.19,11.51210128]
[1751827819962,6.6115,151.23,151.19,11.51210128]
[1751827821067,4.89920128,151.24,151.16,4.89920128]
[1751827821569,6.613,151.2,151.16,11.51330128]
[1751827821867,6.613,151.2,151.16,4.89920128]
[1751827822968,6.6124,151.21,151.17,6.6138]
[1751827823168,4.89920128,151.22,151.09,571.64]
[1751827823368,51.43920128,151.22,151.13,4.89920128]
[1751827823670,4.89920128,151.2,151.13,4.89920128]
[1751827824069,6.614,151.18,151.14,6.6152]
[1751827825560,4.4367,151.21,151.1,48.7337]
[1751827825763,4.89920128,151.16,151.1,51.43920128]
[1751827825959,6.6156,151.14,151.1,51.43920128]
[1751827826162,4.89920128,151.16,151.11,6.6164]
[1751827826868,6.6153,151.15,151.11,6.6164]
[1751827827868,6.6153,151.15,151.12,6.6162]
[1751827831369,6.6153,151.15,151.11,6.6165]
[1751827831569,6.6155,151.14,151.1,4.89920128]
[1751827831973,6.6155,151.14,151.1,11.51620128]
[1751827832374,6.6158,151.13,151.1,11.51620128]
[1751827833774,6.6155,151.14,151.1,11.51620128]
[1751827833974,4.89920128,151.16,151.1,11.51620128]
[1751827834475,6.6156,151.14,151.1,11.51620128]
[1751827837170,6.615,151.15,151.12,4.89920128]
[1751827838574,6.615,151.15,151.12,11.51540128]
[1751827840679,46.54,151.17,151.13,6.6157]
[1751827840873,46.54,151.17,151.14,4.89920128]
[1751827841073,2.2244,151.2,151.14,4.89920128]
[1751827841279,7.12360128,151.2,151.14,4.89920128]
[1751827842582,6.6143,151.17,151.14,4.89920128]
[1751827842882,50.8567,151.21,151.14,4.89920128]
[1751827843083,6.6134,151.19,151.16,4.89920128]
[1751827843877,6.6134,151.19,151.16,11.51370128]
[1751827846886,50.8567,151.21,151.17,6.614]
[1751827847080,48.6566,151.21,151.17,6.614]
[1751827847486,53.0326,151.21,151.17,6.614]
[1751827847988,46.42,151.21,151.17,6.614]
[1751827849582,6.6128,151.2,151.17,6.614]
[1751827849786,6.6128,151.2,151.16,11.51350128]
[1751827850388,6.6128,151.2,151.12,7.15900128]
[1751827850389,6.6132,151.19,151.15,11.51380128]
[1751827853990,6.6136,151.18,151.15,11.51380128]
[1751827855491,6.6133,151.19,151.16,6.6144]
[1751827858097,46.42,151.21,151.17,4.89920128]
[1751827859597,6.6128,151.2,151.17,11.51300128]
[1751827860098,46.42,151.21,151.17,11.51300128]
[1751827861099,53.0326,151.21,151.18,6.6135]
[1751827861398,46.42,151.21,151.17,4.89920128]
[1751827861799,53.0327,151.21,151.18,6.6135]
[1751827864902,6.6128,151.2,151.17,11.51310128]
[1751827865098,46.42,151.21,151.15,4.89920128]
[1751827865299,4.43716648,151.2,151.15,4.89920128]
[1751827865493,4.43716648,151.19,151.15,4.89920128]
[1751827865693,6.6135,151.19,151.16,6.6144]
[1751827866895,6.6135,151.19,151.08,575.8981]
[1751827866896,4.89920128,151.17,151.1,4.89920128]
[1751827867101,4.43744529,151.16,151.1,4.89920128]
[1751827867300,6.616,151.13,151.09,6.6171]
[1751827867500,6.616,151.13,151.08,55.93730128]
[1751827867707,4.89920128,151.15,151.08,55.93730128]
[1751827868302,4.89920128,151.13,151.06,4.89920128]
[1751827868502,9.43756991,151.12,151.06,4.89920128]
[1751827868703,4.89920128,151.13,151.06,4.89920128]
[1751827869005,4.43606508,151.12,151.06,4.89920128]
[1751827869306,6.6167,151.11,151.07,6.6183]
[1751827870307,6.6167,151.11,151.08,6.6179]
[1751827870498,6.6171,151.1,151.06,4.89920128]
[1751827870704,6.6171,151.1,151.04,46.36]
[1751827870906,4.89920128,151.11,151.04,51.25920128]
[1751827871208,9.3537,151.1,151.04,51.25920128]
[1751827871405,51.25920128,151.11,151.05,6.619]
[1751827871909,51.25920128,151.11,151.04,51.25920128]
[1751827872509,6.6176,151.09,151.04,57.87880128]
[1751827872704,4.89920128,151.09,151.02,7.17170128]
[1751827872912,6.6185,151.07,151.03,6.6199]
[1751827873711,6.6189,151.06,151.03,6.6199]
[1751827874111,4.89920128,151.09,151.03,6.6199]
[1751827874812,6.6187,151.07,151.03,6.6199]
[1751827875515,6.6187,151.07,151.04,6.6197]
[1751827876322,6.6194,151.05,151.0,46.38]
[1751827876617,4.89920128,151.05,150.98,4.89920128]
[1751827876819,6.6205,151.03,150.98,4.89920128]
[1751827877017,4.89920128,151.05,150.98,4.89920128]
[1751827877421,4.89920128,151.05,150.98,11.52120128]
[1751827877920,6.6209,151.02,150.98,11.52120128]
[1751827878116,48.7409,151.06,150.91,1.67556926]
[1751827878117,4.89920128,151.03,150.95,4.89920128]
[1751827878325,48.7409,151.06,150.95,4.89920128]
[1751827878326,4.89920128,151.01,150.95,4.89920128]
[1751827878524,51.27920128,151.01,150.93,4.89920128]
[1751827879427,4.89920128,150.99,150.93,4.89920128]
[1751827879925,6.6226,150.98,150.93,4.89920128]
[1751827880223,4.89920128,150.99,150.93,4.89920128]
[1751827880824,6.6232,150.97,150.93,4.89920128]
[1751827881422,6.6232,150.97,150.93,11.52360128]
[1751827882428,6.6232,150.97,150.93,6.6244]
[1751827882727,6.6232,150.96,150.92,57.90410128]
[1751827883930,6.6229,150.97,150.93,6.6243]
[1751827886035,6.6233,150.96,150.93,6.6243]
[1751827886332,7.13220128,151.0,150.93,6.6243]
[1751827886632,7.13220128,151.0,150.92,53.0048]
[1751827886935,7.13220128,151.0,150.93,4.89920128]
[1751827887832,6.6224,150.98,150.93,4.89920128]
[1751827889233,6.622,150.99,150.95,4.89920128]
[1751827889439,46.38,151.01,150.97,4.89920128]
[1751827890636,6.6215,151.0,150.97,11.52170128]
[1751827890938,46.38,151.01,150.97,11.52170128]
[1751827891132,53.0011,151.01,150.97,4.89920128]
[1751827891731,46.42,151.05,150.99,4.89920128]
[1751827891930,46.42,151.05,151.01,4.89920128]
[1751827892635,46.42,151.05,150.99,4.89920128]
[1751827892934,4.89920128,151.04,150.97,4.89920128]
[1751827893141,6.6211,151.01,150.98,6.6223]
[1751827893942,6.6208,151.02,150.98,6.6223]
[1751827894138,46.42,151.05,150.99,4.89920128]
[1751827895445,6.62,151.04,151.01,11.52020128]
[1751827896139,53.0395,151.05,151.01,11.52020128]
[1751827896343,48.6882,151.09,151.03,4.89920128]
[1751827897644,6.6187,151.07,151.03,11.51900128]
[1751827898242,6.618,151.08,151.04,6.6197]
[1751827898545,6.618,151.08,151.05,4.89920128]
[1751827899947,46.42,151.09,150.97,50.9127]
[1751827900245,9.27014924,151.08,151.0,4.89920128]
[1751827900442,7.10530128,151.08,151.0,4.89920128]
[1751827900842,6.6196,151.05,151.01,6.6207]
[1751827901039,7.10530128,151.08,151.02,4.89920128]
[1751827901548,6.6185,151.07,151.02,11.51950128]
[1751827901851,6.6185,151.07,151.02,4.89920128]
[1751827902250,6.6185,151.07,151.03,6.6199]
[1751827902450,46.42,151.09,151.02,4.89920128]
[1751827902647,46.42,151.09,151.04,4.89920128]
[1751827902850,53.0378,151.09,151.04,11.51860128]
[1751827903049,53.0378,151.09,151.04,4.89920128]
[1751827903551,53.0378,151.09,151.06,4.89920128]
[1751827903552,46.42,151.09,151.06,4.89920128]
[1751827903947,4.89920128,151.12,151.07,6.6182]
[1751827904251,6.6173,151.1,151.06,4.89920128]
[1751827904550,6.6173,151.1,151.06,11.51780128]
[1751827906651,6.6168,151.11,151.07,6.6184]
[1751827906850,4.45772554,151.1,151.07,6.6184]
[1751827907055,6.6168,151.11,151.07,6.6184]
[1751827907354,4.45736066,151.1,151.07,6.6184]
[1751827907553,6.6168,151.11,151.07,6.6184]
[1751827907752,4.46126938,151.1,151.07,6.6184]
[1751827907952,6.6168,151.11,151.07,6.6184]
[1751827908156,11.07846938,151.1,151.07,6.6184]
[1751827908455,6.6172,151.1,151.07,6.6184]
[1751827908655,6.6168,151.11,151.07,6.6184]
[1751827908854,4.46399869,151.1,151.07,6.6184]
[1751827909055,6.6168,151.11,151.07,6.6184]
[1751827909257,4.46399869,151.1,151.08,6.6179]
[1751827909457,6.6164,151.12,151.08,6.6179]
[1751827909661,4.46775977,151.11,151.06,4.89920128]
[1751827909858,4.46775977,151.1,151.07,6.6181]
[1751827910158,6.6169,151.11,151.07,6.6181]
[1751827910354,4.46675588,151.1,151.07,6.6181]
[1751827910563,6.6169,151.11,151.07,6.6181]
[1751827910759,4.46960106,151.1,151.08,11.51710128]
[1751827910954,6.6164,151.12,151.08,4.89920128]
[1751827911160,4.46961543,151.11,151.08,4.89920128]
[1751827911361,4.46961543,151.1,151.08,4.89920128]
[1751827911559,6.6164,151.12,151.08,4.89920128]
[1751827911759,4.48330313,151.11,151.08,4.89920128]
[1751827911961,4.48330313,151.1,151.08,4.89920128]
[1751827912158,6.6164,151.12,151.08,4.89920128]
[1751827912460,4.48330313,151.11,151.08,11.51700128]
[1751827912660,4.48330313,151.1,151.08,4.89920128]
[1751827912850,6.6164,151.12,151.08,4.89920128]
[1751827913053,4.48513777,151.11,151.09,6.6171]
[1751827913256,4.48513777,151.1,151.09,6.6171]
[1751827913451,52.9959,151.13,151.09,6.6171]
[1751827913653,4.4859309,151.12,151.09,6.6171]
[1751827913853,4.4859309,151.11,151.09,6.6171]
[1751827914064,52.9959,151.13,151.09,6.6171]
[1751827914264,4.4859309,151.12,151.09,6.6171]
[1751827914461,4.4859309,151.11,151.1,6.6171]
[1751827915165,4.4859309,151.11,151.09,6.6174]
[1751827915362,6.6163,151.12,151.09,6.6174]
[1751827915563,4.48604231,151.11,151.09,6.6174]
[1751827915762,6.6163,151.12,151.09,6.6174]
[1751827915967,4.48603918,151.11,151.08,4.89920128]
[1751827916167,46.38,151.13,151.08,4.89920128]
[1751827916466,4.4860392,151.12,151.08,4.89920128]
[1751827916661,11.1030392,151.11,151.08,4.89920128]
[1751827916872,4.4860392,151.1,151.08,4.89920128]
[1751827917083,6.617,151.11,151.08,4.89920128]
[1751827917381,4.55780285,151.1,151.08,4.89920128]
[1751827917679,6.617,151.11,151.08,4.89920128]
[1751827917977,4.55746027,151.1,151.08,4.89920128]
[1751827918178,6.617,151.11,151.08,4.89920128]
[1751827918375,4.55786295,151.1,151.08,4.89920128]
[1751827918576,6.6163,151.12,151.08,11.51710128]
[1751827918777,4.55797413,151.11,151.08,11.51710128]
[1751827918977,6.6163,151.12,151.08,11.51710128]
[1751827919175,4.55790284,151.11,151.08,11.51710128]
[1751827919376,6.6163,151.12,151.08,11.51710128]
[1751827919676,4.55887549,151.11,151.09,6.6175]
[1751827919873,6.6163,151.12,151.09,6.6175]
[1751827920779,52.9959,151.13,151.09,6.6175]
[1751827921079,4.55773841,151.12,151.09,6.6175]
[1751827921282,6.6163,151.12,151.09,6.6175]
[1751827921877,6.6163,151.12,151.08,11.51700128]
[1751827922076,6.6169,151.11,151.08,11.51700128]
[1751827922279,4.55595271,151.1,151.06,4.89920128]
[1751827922578,51.27920128,151.13,151.06,4.89920128]
[1751827922770,6.6171,151.1,151.06,11.51790128]
[1751827925476,6.6176,151.09,151.06,11.51790128]
[1751827925681,51.27920128,151.13,151.07,6.6184]
[1751827925880,4.55728302,151.12,151.07,6.6184]
[1751827926084,51.27920128,151.13,151.07,6.6184]
[1751827926281,4.5676304,151.12,151.07,6.6184]
[1751827926582,6.6173,151.1,151.07,6.6184]
[1751827928378,6.6173,151.1,151.06,4.89920128]
[1751827928583,6.6176,151.09,151.06,11.51800128]
[1751827929083,6.6173,151.1,151.06,11.51800128]
[1751827931882,6.6173,151.1,151.07,6.6183]
[1751827935285,4.56861486,151.09,151.07,6.6183]
[1751827935486,46.38,151.13,151.08,6.6177]
[1751827935680,4.56934613,151.12,151.08,4.89920128]
[1751827935885,53.41430128,151.17,151.1,4.89920128]
[1751827936080,9.10805049,151.16,151.1,4.89920128]
[1751827936385,4.5697666,151.15,151.1,4.89920128]
[1751827936583,11.1854666,151.14,151.1,11.51620128]
[1751827936779,9.46896788,151.13,151.03,6.6855]
[1751827936980,4.5697666,151.12,151.06,4.89920128]
[1751827937182,53.41430128,151.17,151.1,4.89920128]
[1751827937488,4.57190501,151.16,151.1,4.89920128]
[1751827937787,4.57166256,151.15,151.12,4.89920128]
[1751827937984,4.57166256,151.14,151.12,4.89920128]
[1751827938183,48.5151,151.17,151.13,6.6157]
[1751827938487,4.57301568,151.16,151.13,6.6157]
[1751827938686,4.57301568,151.15,151.12,4.89920128]
[1751827938882,4.57301568,151.14,151.13,6.6158]
[1751827939487,52.9543,151.17,151.13,6.6158]
[1751827939692,4.57408395,151.16,151.14,4.89920128]
[1751827939885,4.57408395,151.15,151.14,4.89920128]
[1751827940391,4.57408395,151.15,151.1,4.89920128]
[1751827940580,4.89920128,151.13,151.06,4.89920128]
[1751827940784,6.6171,151.1,151.06,11.51770128]
[1751827940987,4.5739758,151.09,151.06,11.51770128]
[1751827941189,6.6171,151.1,151.06,4.89920128]
[1751827941387,6.6176,151.09,151.06,11.51780128]
[1751827941582,6.6176,151.09,151.06,4.89920128]
[1751827941789,6.6176,151.09,151.05,6.619]
[1751827941990,50.9083064,151.12,151.05,6.619]
[1751827941991,4.57458714,151.08,151.05,6.619]
[1751827942188,4.89920128,151.11,151.05,6.619]
[1751827942388,4.57505106,151.1,151.05,6.619]
[1751827942583,4.57505106,151.09,151.05,6.619]
[1751827942783,4.57505106,151.08,151.05,6.619]
[1751827943087,4.89920128,151.11,151.05,6.619]
[1751827943288,4.57521528,151.1,151.05,6.619]
[1751827943488,4.57521528,151.09,151.05,6.619]
[1751827943793,6.618,151.08,151.05,6.619]
[1751827945588,6.618,151.08,151.04,11.51880128]
[1751827945889,4.64176575,151.07,151.04,11.51880128]
[1751827946092,12.93938963,151.1,151.04,11.51880128]
[1751827946295,6.6182,151.08,151.04,11.51880128]
[1751827946495,4.64177441,151.07,151.04,11.51880128]
[1751827946696,6.6182,151.08,151.04,11.51880128]
[1751827946897,4.64249065,151.07,151.04,11.51880128]
[1751827947097,6.6182,151.08,151.04,11.51880128]
[1751827947397,4.64539514,151.07,151.04,11.51880128]
[1751827947598,6.6182,151.08,151.04,11.51880128]
[1751827947799,4.64618312,151.07,151.04,11.51880128]
[1751827947998,6.6182,151.08,151.05,6.6192]
[1751827949202,4.58038453,151.07,151.05,6.6192]
[1751827949403,6.6182,151.08,151.05,6.6192]
[1751827949603,4.57993291,151.07,151.05,6.6192]
[1751827949805,6.6182,151.08,151.05,6.6192]
[1751827949994,4.57993291,151.07,151.05,6.6192]
[1751827950198,6.6182,151.08,151.05,6.6192]
[1751827950393,4.57941002,151.07,151.05,6.6192]
[1751827950601,6.6182,151.08,151.05,6.6192]
[1751827950801,4.57922741,151.07,151.05,6.6192]
[1751827951001,6.6182,151.08,151.05,6.6192]
[1751827951202,4.57922729,151.07,151.05,6.6192]
[1751827951405,6.6182,151.08,151.05,6.6192]
[1751827952204,46.34,151.12,151.04,4.89920128]
[1751827952404,17.42220846,151.11,151.06,4.89920128]
[1751827952601,4.56787424,151.1,151.06,4.89920128]
[1751827952805,6.6184,151.08,151.06,4.89920128]
[1751827953408,6.6184,151.08,151.04,4.89920128]
[1751827954103,6.6176,151.09,151.06,4.89920128]
[1751827954302,4.56683002,151.08,151.06,4.89920128]
[1751827954504,8.32389079,151.11,151.07,6.6181]
[1751827954705,4.56658753,151.1,151.07,6.6181]
[1751827954906,4.56658753,151.09,151.07,6.6181]
[1751827955106,6.6169,151.11,151.08,6.6178]
[1751827955306,4.56668811,151.1,151.08,6.6178]
[1751827955513,6.6169,151.11,151.08,11.51700128]
[1751827955808,4.56675117,151.1,151.08,11.51700128]
[1751827956110,6.6169,151.11,151.08,11.51700128]
[1751827956310,4.56668061,151.1,151.08,11.51700128]
[1751827956610,6.6169,151.11,151.08,4.89920128]
[1751827956807,4.56650044,151.1,151.08,4.89920128]
[1751827957005,6.6169,151.11,151.08,4.89920128]
[1751827957510,46.34,151.12,151.08,4.89920128]
[1751827957711,4.38673552,151.11,151.08,4.89920128]
[1751827958009,46.34,151.12,151.08,4.89920128]
[1751827958010,4.38673552,151.1,151.08,4.89920128]
[1751827958210,6.6167,151.11,151.08,4.89920128]
[1751827958405,4.38556759,151.1,151.08,4.89920128]
[1751827958605,46.34,151.12,151.08,4.89920128]
[1751827958806,4.38556759,151.11,151.08,4.89920128]
[1751827959006,4.38556759,151.1,151.08,4.89920128]
[1751827959211,6.6167,151.11,151.08,4.89920128]
[1751827959412,4.3856415,151.1,151.05,6.6192]
[1751827959711,6.6178,151.09,151.05,11.51840128]
[1751827960304,6.6178,151.09,151.06,6.6188]
[1751827960801,6.618,151.08,151.05,4.89920128]
[1751827961506,6.6178,151.09,151.05,4.89920128]